bitfinex-derivatives/quotes_SOLF0:USTF0_20250228
["timestamp","ask_amount","ask_price","bid_price","bid_amount"]
[1740709245788,15.64,130.58,130.49,7.6686]
[1740709246181,0.05605027,130.52,130.5,7.7162877]
[1740709246381,7.666,130.54,130.5,0.0484877]
[1740709246582,15.64,130.58,130.38,1.5339776]
[1740709246786,7.668,130.5,130.39,7.986]
[1740709246983,190.0,130.57,130.51,0.05844675]
[1740709247283,7.6675,130.51,130.4,1.53374233]
[1740709247489,0.04897157,130.46,130.4,1.53374233]
[1740709247988,1.38415794,130.55,130.4,1.53374233]
[1740709248189,190.0,130.56,130.4,1.53374233]
[1740709248394,0.04892623,130.49,130.46,0.0540477]
[1740709248794,7.6675,130.51,130.4,1.53374233]
[1740709249297,0.05253715,130.49,130.46,0.0546355]
[1740709249795,7.6672,130.52,130.4,1.53374233]
[1740709249994,0.05613844,130.49,130.46,0.05110665]
[1740709250394,7.6674,130.52,130.47,7.6692]
[1740709250597,0.0512628,130.49,130.47,7.6692]
[1740709250998,7.6679,130.51,130.47,7.6692]
[1740709251198,0.05723569,130.49,130.47,7.72322852]
[1740709251400,0.05723569,130.49,130.47,0.05402852]
[1740709252898,190.0,130.56,130.47,0.05402852]
[1740709253094,1.38493135,130.55,130.4,1.53374233]
[1740709253298,7.6701,130.47,130.43,7.6719]
[1740709253499,190.0,130.54,130.4,1.53374233]
[1740709253698,191.38404155,130.53,130.4,1.53374233]
[1740709253902,191.38404155,130.52,130.4,1.53374233]
[1740709254099,0.0522982,130.48,130.46,0.0559617]
[1740709255301,7.6698,130.47,130.46,0.0559617]
[1740709255598,23.0522982,130.48,130.4,1.53374233]
[1740709255794,0.0522982,130.48,130.4,1.53374233]
[1740709256000,1.38304616,130.48,130.4,1.53374233]
[1740709256302,1.51154616,130.48,130.4,1.53374233]
[1740709256503,0.1285,130.48,130.4,1.53374233]
[1740709256798,0.04972879,130.45,130.43,0.05084815]
[1740709258797,7.6715,130.44,130.43,0.05084815]
[1740709259797,0.04972879,130.45,130.43,0.05084815]
[1740709260199,15.64,130.49,130.43,0.05084815]
[1740709260500,15.64,130.55,130.43,0.05084815]
[1740709260702,1.38970099,130.53,130.43,0.05084815]
[1740709260897,15.64,130.55,130.46,7.67]
[1740709261100,1.39040132,130.54,130.46,7.67]
[1740709261302,185.76643975,130.56,130.41,11.9705]
[1740709261600,0.05160138,130.51,130.49,0.0586076]
[1740709261996,185.76643975,130.56,130.49,0.0586076]
[1740709262206,7.668,130.5,130.49,0.0586076]
[1740709262503,0.04877718,130.51,130.49,0.0586076]
[1740709262704,7.71657718,130.51,130.49,0.0586076]
[1740709262904,0.04877718,130.51,130.49,0.0586076]
[1740709267109,0.04877718,130.51,130.49,7.7268076]
[1740709267311,0.04877718,130.51,130.49,0.0586076]
[1740709267708,0.04877718,130.51,130.49,7.7272076]
[1740709267908,26.2094123,130.59,130.49,0.0586076]
[1740709268109,26.2094123,130.59,130.5,3.9842]
[1740709268611,7.6656,130.55,130.51,7.6674]
[1740709269011,15.62,130.59,130.41,3.9611]
[1740709269208,0.05013841,130.54,130.52,0.05159034]
[1740709269411,190.0,130.58,130.42,5.51770713]
[1740709269612,0.04830771,130.54,130.52,0.0560886]
[1740709269818,190.0,130.58,130.43,1.53338955]
[1740709270119,0.05810067,130.54,130.43,1.53338955]
[1740709270319,10.5894123,130.61,130.49,0.05556462]
[1740709270320,7.6629,130.59,130.49,0.05556462]
[1740709270516,10.5894123,130.61,130.5,1.53256704]
[1740709270721,10.5894123,130.61,130.51,3.9282]
[1740709270914,10.5894123,130.61,130.6,7.6621]
[1740709271218,10.5894123,130.61,130.52,1.5323322]
[1740709271620,10.5894123,130.61,130.59,0.0579475]
[1740709271811,42.14793065,130.65,130.52,1.5323322]
[1740709272016,0.05505376,130.61,130.59,0.05702887]
[1740709273118,0.05505376,130.61,130.6,7.6621]
[1740709273312,42.14793065,130.65,130.59,0.05702887]
[1740709273517,42.14793065,130.65,130.64,7.6598]
[1740709273823,42.14793065,130.65,130.6,5.33999356]
[1740709274016,10.83963065,130.65,130.6,5.33999356]
[1740709274220,78.05111788,130.66,130.6,5.33999356]
[1740709274421,5.55951788,130.66,130.6,28.29999356]
[1740709274618,88.96428312,130.67,130.61,1.58915244]
[1740709275017,88.96428312,130.72,130.61,1.58915244]
[1740709275415,88.96428312,130.72,130.61,1.53127631]
[1740709275617,89.18268312,130.72,130.61,1.53127631]
[1740709275918,0.05808268,130.68,130.65,0.05748842]
[1740709279325,0.05808268,130.68,130.61,1.53127631]
[1740709279824,0.05808268,130.68,130.56,41.85026152]
[1740709280025,7.6626,130.6,130.56,41.85026152]
[1740709280220,4.0051,130.67,130.56,41.85026152]
[1740709280622,7.6639,130.57,130.56,29.33886152]
[1740709280825,7.6639,130.57,130.56,4.31436152]
[1740709281019,15.6,130.61,130.55,83.38035446]
[1740709281219,7.6645,130.56,130.55,70.91846555]
[1740709281425,7.6645,130.56,130.55,68.95556555]
[1740709281625,0.05228925,130.58,130.55,68.95556555]
[1740709281823,0.05228925,130.58,130.55,0.05211109]
[1740709283223,7.6639,130.57,130.55,0.05211109]
[1740709283529,0.05228925,130.58,130.55,0.05211109]
[1740709284328,7.6668,130.52,130.44,11.9308]
[1740709284631,0.05228925,130.58,130.44,11.9308]
[1740709284832,1.37760661,130.6,130.44,11.9308]
[1740709285029,7.6681,130.5,130.44,11.9308]
[1740709285430,15.6,130.61,130.44,11.9308]
[1740709285431,7.6693,130.48,130.44,11.9308]
[1740709285731,0.05238056,130.48,130.46,0.0492593]
[1740709286128,7.6698,130.47,130.46,0.0492593]
[1740709287331,7.6698,130.47,130.46,5.93e-05]
[1740709288432,0.05238056,130.48,130.46,5.93e-05]
[1740709289431,7.6698,130.47,130.46,5.93e-05]
[1740709292430,0.05238056,130.48,130.46,5.93e-05]
[1740709293942,0.05238056,130.48,130.46,7.6703593]
[1740709294140,15.6,130.55,130.46,7.6703593]
[1740709294141,15.6,130.55,130.46,5.93e-05]
[1740709294339,3.8325,130.56,130.49,7.6685]
[1740709294636,15.6,130.61,130.47,4.1483]
[1740709294836,3.9744,130.6,130.47,4.1483]
[1740709295035,3.9744,130.6,130.52,7.6668]
[1740709295333,3.9744,130.6,130.47,4.1483]
[1740709295538,0.05509512,130.55,130.52,7.7159911]
[1740709295735,0.05509512,130.55,130.52,0.0496911]
[1740709295931,0.05509512,130.55,130.47,4.1483]
[1740709296138,0.05509512,130.55,130.53,7.6658]
[1740709296331,3.9744,130.6,130.52,0.05553403]
[1740709296532,0.05000744,130.55,130.52,0.05553403]
[1740709296841,11.6349,130.63,130.47,19.7483]
[1740709297233,11.6349,130.63,130.54,7.6652]
[1740709297438,3.9744,130.63,130.47,19.7483]
[1740709297939,7.6582,130.67,130.58,7.6632]
[1740709298335,0.05049784,130.64,130.58,7.6632]
[1740709298540,0.05049784,130.64,130.61,0.05338407]
[1740709298845,4.0857,130.7,130.49,4.1659]
[1740709299045,0.05845624,130.64,130.61,0.05573334]
[1740709299243,1.3701375,130.69,130.55,7.6649]
[1740709299644,0.05207958,130.64,130.61,0.05474973]
[1740709299839,0.05207958,130.64,130.57,7.6638]
[1740709300040,4.0857,130.7,130.59,0.05669489]
[1740709300242,0.05744301,130.62,130.59,0.05669489]
[1740709300438,0.05744301,130.62,130.5,1.402971]
[1740709300439,7.6582,130.67,130.5,1.402971]
[1740709300638,0.05583915,130.62,130.59,0.05175745]
[1740709301043,4.0857,130.7,130.58,7.6629]
[1740709301044,7.6593,130.65,130.58,7.6629]
[1740709301344,0.05360788,130.62,130.59,0.054392]
[1740709301746,7.6598,130.64,130.5,1.40288578]
[1740709301947,4.0857,130.7,130.51,4.0679]
[1740709302150,0.05479455,130.62,130.59,0.04922762]
[1740709302547,7.6594,130.65,130.58,7.6629]
[1740709302848,0.05755884,130.62,130.59,7.72048528]
[1740709303049,7.6594,130.65,130.59,7.72048528]
[1740709303250,0.05293033,130.62,130.59,7.72048528]
[1740709304450,4.0857,130.7,130.59,0.05818528]
[1740709304654,4.0857,130.7,130.53,286.37860288]
[1740709305049,7.6569,130.69,130.54,1.40256724]
[1740709305249,4.0857,130.7,130.54,1.40256724]
[1740709305546,7.6575,130.68,130.55,3.8607]
[1740709305749,0.05722117,130.63,130.61,0.05140852]
[1740709305943,4.0857,130.7,130.61,0.05140852]
[1740709306145,7.6569,130.69,130.64,7.6595]
[1740709306348,4.0404,130.75,130.56,97.38670288]
[1740709306549,4.0905,130.74,130.56,97.38670288]
[1740709306749,4.0905,130.74,130.57,1.40221082]
[1740709307154,3.547e-05,130.67,130.64,0.05321327]
[1740709307355,3.547e-05,130.67,130.66,7.6586]
[1740709307653,7.6549,130.73,130.65,4.1647]
[1740709308157,11.7446,130.74,130.65,4.1647]
[1740709308355,0.05271757,130.7,130.68,0.05042953]
[1740709309857,0.05271757,130.7,130.68,7.70752953]
[1740709310353,0.05271757,130.7,130.68,0.05042953]
[1740709310952,0.05271757,130.7,130.68,7.70772953]
[1740709311452,0.05271757,130.7,130.68,0.05042953]
[1740709313156,7.6568,130.69,130.68,0.05042953]
[1740709313358,0.05271757,130.7,130.68,0.05042953]
[1740709313756,0.05271757,130.7,130.63,7.6602]
[1740709313956,0.05271757,130.7,130.59,8.0332]
[1740709314259,7.6574,130.69,130.64,7.6594]
[1740709314656,4.1628,130.73,130.59,8.0332]
[1740709314960,4.1628,130.73,130.6,1.53139356]
[1740709315161,0.05040133,130.67,130.65,0.0520056]
[1740709315556,1.38223234,130.72,130.6,1.53139356]
[1740709315756,0.04975744,130.67,130.65,0.04941377]
[1740709316160,15.56,130.7,130.61,7.6611]
[1740709316459,0.04955195,130.67,130.65,0.04917772]
[1740709317462,7.6604,130.63,130.6,1.53139356]
[1740709317661,0.04955195,130.67,130.6,1.53139356]
[1740709317858,7.6597,130.65,130.61,7.6615]
[1740709318055,15.56,130.7,130.61,7.6615]
[1740709318359,15.56,130.7,130.6,1.53139356]
[1740709318559,0.05232283,130.67,130.64,0.05114744]
[1740709318951,7.6586,130.66,130.64,0.05114744]
[1740709319152,0.05232283,130.67,130.64,0.05114744]
[1740709321262,7.6586,130.66,130.64,0.05114744]
[1740709321454,0.05232283,130.67,130.64,0.05114744]
[1740709321855,7.6592,130.65,130.64,0.05114744]
[1740709322060,0.05232283,130.67,130.64,0.05114744]
[1740709322461,7.6586,130.66,130.64,0.05114744]
[1740709322657,0.05232283,130.67,130.64,0.05114744]
[1740709322862,0.05232283,130.67,130.64,7.71074744]
[1740709323065,0.05232283,130.67,130.64,0.05114744]
[1740709326263,0.05232283,130.67,130.6,1.53139356]
[1740709326656,0.05232283,130.67,130.54,3.779]
[1740709326657,23.01232283,130.67,130.54,3.779]
[1740709326857,0.1618,130.66,130.5,7.8441]
[1740709327060,1.37169183,130.65,130.51,19.319]
[1740709327263,4.09,130.69,130.51,19.319]
[1740709327566,0.05588814,130.59,130.57,0.04953679]
[1740709327766,4.09,130.69,130.57,0.04953679]
[1740709328068,3.9654,130.68,130.51,19.319]
[1740709328263,3.8036,130.68,130.51,19.319]
[1740709328458,4.09,130.69,130.52,15.3336]
[1740709328664,4.2161,130.76,130.51,19.319]
[1740709328865,1.3740818,130.75,130.52,1.40270312]
[1740709329066,1.3740818,130.75,130.59,0.05732971]
[1740709329067,6.37e-05,130.62,130.59,0.05732971]
[1740709329366,4.2161,130.76,130.53,15.3325]
[1740709329367,1.3740818,130.74,130.56,208.32]
[1740709329667,23.92535703,130.76,130.57,7.9164]
[1740709329668,1.3740818,130.73,130.57,7.9164]
[1740709329963,7.6584,130.67,130.59,7.6625]
[1740709330268,0.04883601,130.66,130.64,0.04919876]
[1740709330664,5.36851834,130.69,130.6,7.662]
[1740709330864,0.05507705,130.66,130.64,0.05441957]
[1740709332269,0.05507705,130.66,130.65,7.6592]
[1740709332564,0.05507705,130.66,130.64,0.05441957]
[1740709333271,0.05507705,130.66,130.58,3.8587]
[1740709333571,191.36827954,130.71,130.58,3.8587]
[1740709333775,1.36827954,130.7,130.58,3.8587]
[1740709333972,4.0702,130.73,130.58,3.8587]
[1740709334170,11.7251,130.73,130.67,7.6579]
[1740709334372,4.0702,130.73,130.58,81.81730288]
[1740709334568,0.04912125,130.71,130.69,0.05378006]
[1740709336875,0.04912125,130.71,130.58,81.81730288]
[1740709337076,0.04912125,130.71,130.58,3.8587]
[1740709337375,7.6563,130.7,130.58,3.8587]
[1740709337574,7.6563,130.7,130.59,31.40141828]
[1740709337773,7.6563,130.7,130.62,7.6605]
[1740709337974,0.04883999,130.66,130.63,0.05158762]
[1740709338878,0.04883999,130.66,130.63,7.71178762]
[1740709339175,0.04883999,130.66,130.63,0.05158762]
[1740709339975,0.04883999,130.66,130.64,7.6593]
[1740709340175,0.04883999,130.66,130.64,11.5702]
[1740709340773,0.04883999,130.66,130.64,3.9109]
[1740709341179,0.04883999,130.66,130.63,0.05158762]
[1740709343880,0.04883999,130.66,130.65,7.6592]
[1740709344081,0.04883999,130.66,130.63,0.05158762]
[1740709344279,4.0702,130.73,130.63,0.05158762]
[1740709344780,4.0702,130.73,130.59,4.1493]
[1740709344979,4.0702,130.73,130.65,7.6587]
[1740709345175,4.0702,130.73,130.59,4.1493]
[1740709345373,0.05366671,130.7,130.68,0.05534141]
[1740709345578,7.6584,130.67,130.59,4.1493]
[1740709345783,7.6584,130.67,130.59,35.55071828]
[1740709345986,4.0702,130.73,130.59,46.17541157]
[1740709346187,7.659,130.66,130.61,7.6611]
[1740709346588,15.52,130.71,130.59,46.17541157]
[1740709346787,0.05742683,130.65,130.62,0.05575497]
[1740709347191,4.0899,130.69,130.6,7.662]
[1740709347492,7.6602,130.64,130.62,0.05135096]
[1740709347692,0.05290668,130.65,130.62,0.05135096]
[1740709348084,0.05290668,130.65,130.55,10.62469329]
[1740709348387,190.0,130.67,130.55,10.62469329]
[1740709348593,7.6629,130.59,130.55,10.62469329]
[1740709349387,0.05456589,130.58,130.56,0.05157082]
[1740709349792,7.6639,130.57,130.56,0.05157082]
[1740709350486,7.6645,130.56,130.55,10.62469329]
[1740709350688,0.05456589,130.58,130.54,25.48991828]
[1740709350889,23.03456589,130.58,130.54,1.828e-05]
[1740709351385,0.05456589,130.58,130.49,10.64475538]
[1740709351792,1.37396369,130.59,130.52,0.05746054]
[1740709352089,1.37396369,130.59,130.49,10.64475538]
[1740709352090,0.05091205,130.55,130.49,10.64475538]
[1740709352291,0.05091205,130.55,130.54,0.05117042]
[1740709352490,0.05091205,130.55,130.49,10.64475538]
[1740709352792,0.05091205,130.55,130.53,0.0502394]
[1740709354994,15.52,130.62,130.53,0.0502394]
[1740709355495,115.7679679,130.63,130.47,7.8197]
[1740709356193,115.7679679,130.63,130.57,7.6635]
[1740709356583,0.04988359,130.61,130.59,0.05288607]
[1740709356789,115.7679679,130.7,130.47,85.77830288]
[1740709356984,0.05130028,130.61,130.59,0.05560967]
[1740709357292,1.53139356,130.6,130.59,7.72073389]
[1740709357489,0.05034571,130.61,130.59,0.05813389]
[1740709357690,15.52,130.67,130.59,0.05813389]
[1740709358091,15.52,130.67,130.49,1.40312518]
[1740709358293,15.52,130.67,130.49,79.36172806]
[1740709358492,15.52,130.67,130.49,77.95860288]
[1740709358893,15.52,130.67,130.61,7.6615]
[1740709359493,0.05450772,130.65,130.63,0.048785]
[1740709361994,1.37593206,130.72,130.63,0.048785]
[1740709362193,1.37593206,130.72,130.55,93.47860288]
[1740709362797,1.37593206,130.72,130.56,3.9206]
[1740709362998,7.6551,130.72,130.63,7.66]
[1740709363294,1.5864,130.73,130.64,3.9206]
[1740709363495,0.05574304,130.69,130.66,0.05220254]
[1740709364902,138.79636481,130.77,130.66,0.05220254]
[1740709365198,1.37484672,130.76,130.65,3.7877]
[1740709365401,138.79636481,130.77,130.65,3.7877]
[1740709365992,146.44896481,130.77,130.7,7.6562]
[1740709366303,0.05573385,130.72,130.7,0.05378749]
[1740709366500,31.80184021,130.78,130.7,0.05378749]
[1740709366799,31.80184021,130.78,130.65,3.7877]
[1740709367197,31.80184021,130.78,130.65,81.74630288]
[1740709367593,25.54044021,130.78,130.76,7.6527]
[1740709367798,25.54044021,130.78,130.7,0.0564588]
[1740709368000,7.63e-06,130.73,130.7,22.96]
[1740709368201,7.63e-06,130.73,130.72,7.6551]
[1740709368398,7.63e-06,130.73,130.72,30.5951]
[1740709368605,19.27804021,130.78,130.65,81.74630288]
[1740709368800,19.27804021,130.78,130.74,7.6534]
[1740709369096,19.27804021,130.78,130.75,4.0052]
[1740709369405,0.05240217,130.77,130.75,0.05387828]
[1740709369604,7.70500217,130.77,130.75,0.05387828]
[1740709369800,0.05240217,130.77,130.75,0.05387828]
[1740709370196,1.52951973,130.76,130.75,0.05387828]
[1740709370802,9.18221973,130.76,130.75,0.05387828]
[1740709375710,1.52951973,130.76,130.75,0.05387828]
[1740709377001,9.18221973,130.76,130.75,0.05387828]
[1740709377307,1.52951973,130.76,130.75,0.05387828]
[1740709381506,0.05240217,130.77,130.75,0.05387828]
[1740709381708,8.0302,130.87,130.75,0.05387828]
[1740709381910,1.38315812,130.86,130.75,0.05387828]
[1740709382207,7.6492,130.82,130.68,211.9752]
[1740709382407,8.0302,130.87,130.68,211.9752]
[1740709382709,7.6483,130.84,130.79,7.6506]
[1740709383209,0.05630598,130.83,130.8,0.05479619]
[1740709383502,7.6476,130.85,130.68,211.9752]
[1740709383805,41.01290291,130.92,130.68,211.9752]
[1740709384006,3.28e-06,130.78,130.75,0.05506525]
[1740709384205,41.01290291,130.92,130.75,38.45506525]
[1740709384509,41.01290291,130.92,130.87,7.6458]
[1740709385305,0.04962996,130.91,130.88,0.04843075]
[1740709385610,273.96612769,131.0,130.88,0.04843075]
[1740709385903,273.96612769,131.0,130.81,208.06]
[1740709385904,83.96612769,131.0,130.85,15.46]
[1740709386209,83.96612769,131.0,130.86,3.8067]
[1740709386910,0.05515126,130.94,130.92,0.04982887]
[1740709387301,15.46,130.98,130.87,4.1702]
[1740709387505,0.05766532,130.94,130.92,0.0483605]
[1740709387706,0.05766532,130.94,130.87,4.1702]
[1740709388311,0.05766532,130.94,130.86,3.8067]
[1740709388713,15.46,130.98,130.86,3.8067]
[1740709388909,0.05223348,130.91,130.89,0.04859253]
[1740709389413,0.05246809,130.91,130.89,0.02182137]
[1740709389908,7.6446,130.9,130.89,0.02182137]
[1740709390911,15.4754,130.9,130.89,0.02182137]
[1740709391510,7.6446,130.9,130.89,0.02182137]
[1740709391913,0.05246809,130.91,130.89,0.02182137]
[1740709392616,0.05246809,130.91,130.89,7.66682137]
[1740709392913,15.44,131.02,130.89,0.02182137]
[1740709393114,8.0607,131.01,130.83,19.6102]
[1740709393316,7.6416,130.96,130.9,7.6445]
[1740709393510,8.0607,131.01,130.83,97.56880288]
[1740709393715,8.0607,131.01,130.83,19.6102]
[1740709393911,0.05356346,130.93,130.91,0.05552124]
[1740709394313,7.6412,130.96,130.83,19.6102]
[1740709394512,0.04861046,130.93,130.91,0.05165255]
[1740709394707,0.04861046,130.93,130.83,19.6102]
[1740709394919,8.0607,131.01,130.91,7.69219076]
[1740709395114,8.0607,131.01,130.83,19.6102]
[1740709395412,0.0582973,130.97,130.87,7.6459]
[1740709395618,8.0607,131.01,130.83,19.6102]
[1740709395917,7.6429,130.93,130.88,7.6453]
[1740709396110,7.6429,130.93,130.83,19.6102]
[1740709396111,8.0607,131.01,130.83,19.6102]
[1740709396311,1.38367384,131.0,130.83,19.6102]
[1740709396515,7.6421,130.95,130.89,7.6447]
[1740709396718,0.05698816,130.93,130.9,0.05393004]
[1740709396918,8.0607,131.01,130.9,0.05393004]
[1740709397110,0.05357777,130.93,130.91,7.644]
[1740709397310,8.0607,131.01,130.83,19.6102]
[1740709397519,8.0607,131.01,130.91,0.05698469]
[1740709397720,8.0607,131.01,130.83,97.56880288]
[1740709397914,0.05642782,130.97,130.95,0.05236109]
[1740709398116,7.6406,130.97,130.92,7.6434]
[1740709398321,8.0607,131.01,130.85,4.0104]
[1740709398518,0.05035852,130.97,130.95,0.05099048]
[1740709398716,9.49062754,131.05,130.85,81.96900288]
[1740709399019,0.05072065,130.97,130.95,0.05496427]
[1740709399212,7.6411,130.96,130.95,0.05496427]
[1740709399414,8.11,131.05,130.85,81.96900288]
[1740709399618,0.05178157,130.97,130.94,0.050705]
[1740709399819,7.6416,130.95,130.94,0.050705]
[1740709400019,7.6416,130.95,130.85,81.96900288]
[1740709400020,31.05,131.05,130.85,81.96900288]
[1740709400318,0.05179764,130.96,130.93,0.05560835]
[1740709400513,0.05179764,130.96,130.85,4.0104]
[1740709400710,5.39628866,130.97,130.85,4.0104]
[1740709400917,1.38148866,130.96,130.85,11.6577]
[1740709401220,1.38226032,130.95,130.74,284.94232342]
[1740709401417,1.38226032,130.94,130.8,8.1637]
[1740709401618,7.646,130.88,130.83,7.6486]
[1740709401820,0.04834598,130.88,130.86,0.0516636]
[1740709402321,0.05365345,130.88,130.86,0.05305661]
[1740709402721,7.6463,130.87,130.86,0.05305661]
[1740709402922,0.05365345,130.88,130.86,0.05305661]
[1740709403322,7.6463,130.87,130.86,0.05305661]
[1740709403724,7.6493,130.82,130.8,8.1637]
[1740709403926,0.05365345,130.88,130.78,3.9157]
[1740709404224,7.6467,130.87,130.78,3.9157]
[1740709404419,190.0,130.94,130.78,3.9157]
[1740709404624,1.38387787,130.93,130.78,3.9157]
[1740709404921,15.42,130.94,130.78,3.9157]
[1740709405128,0.05233861,130.87,130.84,0.05600638]
[1740709405524,15.42,130.94,130.78,3.9157]
[1740709405725,0.0544714,130.87,130.84,0.04867658]
[1740709406227,0.0544714,130.87,130.84,0.05626184]
[1740709406228,0.05832952,130.87,130.84,0.05626184]
[1740709406423,15.42,130.94,130.84,0.05626184]
[1740709406624,7.6441,130.91,130.78,81.87430288]
[1740709406825,15.42,130.94,130.78,81.87430288]
[1740709407026,4.0852,130.98,130.78,81.87430288]
[1740709407224,7.6446,130.9,130.85,7.6472]
[1740709407524,4.0852,130.98,130.78,77.95860288]
[1740709407830,7.6467,130.87,130.86,0.05252315]
[1740709408326,7.6469,130.86,130.85,0.04944648]
[1740709408531,1.5283509,130.86,130.79,4.1487]
[1740709408729,1.5283509,130.86,130.84,0.0502221]
[1740709409029,1.5283509,130.86,130.84,0.0535944]
[1740709409230,1.57796048,130.86,130.84,0.0535944]
[1740709411129,1.57796048,130.86,130.84,7.7014944]
[1740709411331,1.57796048,130.86,130.84,0.0535944]
[1740709412525,7.6475,130.85,130.84,0.0535944]
[1740709413230,9.17596771,130.85,130.84,0.0535944]
[1740709413731,1.52846771,130.85,130.76,3.9614]
[1740709414032,7.6511,130.79,130.76,3.9614]
[1740709414932,7.7035077,130.79,130.76,4.01237107]
[1740709415131,1.52928582,130.78,130.76,4.01237107]
[1740709417227,0.0524077,130.79,130.76,26.95237107]
[1740709417433,1.3832276,130.89,130.76,4.01237107]
[1740709417932,190.0,130.95,130.76,3.9614]
[1740709418126,1.3843676,130.94,130.76,3.9614]
[1740709418327,1.3843676,130.94,130.86,7.6464]
[1740709418533,0.05768582,130.86,130.84,0.05615105]
[1740709418731,7.7592,130.95,130.76,3.9614]
[1740709418923,7.6436,130.92,130.76,3.9614]
[1740709419125,7.7592,130.95,130.76,3.9614]
[1740709419429,7.6447,130.9,130.76,3.9614]
[1740709419935,0.05229011,130.84,130.82,0.05852741]
[1740709420134,7.6456,130.89,130.82,0.05852741]
[1740709420326,7.6456,130.89,130.76,3.9614]
[1740709420928,7.6456,130.89,130.84,7.6476]
[1740709421231,7.7592,130.95,130.76,81.92000288]
[1740709421434,0.0537633,130.88,130.85,0.04835297]
[1740709421634,0.0537633,130.88,130.86,7.6465]
[1740709421830,0.05059092,130.88,130.84,0.05863656]
[1740709422026,7.7592,130.95,130.86,7.70297948]
[1740709422225,0.0520801,130.87,130.86,0.05667948]
[1740709422430,3.9538,130.95,130.76,81.92000288]
[1740709422630,3.9538,130.95,130.76,3.9614]
[1740709422931,3.9538,130.95,130.87,7.6462]
[1740709423129,3.9538,130.95,130.76,81.92000288]
[1740709423331,3.9538,130.95,130.88,7.6452]
[1740709423526,3.8928,130.98,130.76,81.92000288]
[1740709423735,0.04450701,130.93,130.91,7.6435]
[1740709423936,7.6407,130.97,130.77,189.96662347]
[1740709424135,4.1643,131.0,130.78,1.39972287]
[1740709424330,4.1643,131.0,130.91,7.6435]
[1740709424531,4.1643,131.0,130.79,93.26050288]
[1740709425037,4.1643,131.0,130.92,7.6434]
[1740709425431,4.1643,131.0,130.95,0.04900005]
[1740709425626,4.1643,131.0,130.91,7.6439]
[1740709425929,7.6416,130.96,130.94,0.05076849]
[1740709426236,4.1643,131.0,130.94,0.05076849]
[1740709426835,31.32780898,131.04,130.94,0.05076849]
[1740709427331,31.32780898,131.04,130.89,4.001]
[1740709427633,7.6347,131.07,130.99,7.6389]
[1740709428235,31.32780898,131.08,131.02,0.05397482]
[1740709428536,31.32780898,131.08,130.9,82.05450288]
[1740709428736,7.6354,131.06,131.04,0.05197868]
[1740709428933,7.6354,131.06,130.98,7.6395]
[1740709429135,31.32780898,131.08,131.04,0.05761998]
[1740709429336,7.6348,131.07,130.99,7.6389]
[1740709429637,7.6348,131.07,131.05,0.05873024]
[1740709429931,38.96200898,131.08,131.0,7.6386]
[1740709430236,31.32780898,131.08,131.05,0.05155434]
[1740709430534,31.32780898,131.08,130.91,4.0201]
[1740709430736,31.32780898,131.08,131.05,0.05138614]
[1740709431034,31.32780898,131.08,130.93,15.38]
[1740709431234,31.32780898,131.08,131.05,0.05187009]
[1740709431436,25.07660898,131.08,130.96,207.84]
[1740709431638,252.73968381,131.12,130.96,207.84]
[1740709431639,15.4372,131.16,131.05,0.04974972]
[1740709431836,15.4372,131.16,130.97,86.15930288]
[1740709432037,7.8076,131.16,131.09,0.05014624]
[1740709432238,7.6302,131.15,131.07,7.6341]
[1740709432541,7.6302,131.15,131.11,0.05131919]
[1740709432939,7.6307,131.14,131.11,0.05131919]
[1740709433135,7.8076,131.16,131.11,0.05131919]
[1740709433539,7.6309,131.14,131.11,0.05131919]
[1740709434441,7.6312,131.13,131.11,0.05131919]
[1740709434635,7.8076,131.16,131.11,0.05131919]
[1740709434636,3.9947,131.15,131.11,0.05131919]
[1740709434836,26.8747,131.15,130.97,86.15930288]
[1740709435032,3.9947,131.15,130.98,4.1014]
[1740709435635,7.6341,131.08,130.98,4.1014]
[1740709435934,3.9947,131.15,130.98,4.1014]
[1740709436437,0.05131919,131.08,131.05,0.05830721]
[1740709436738,3.9947,131.15,130.98,4.1014]
[1740709436940,0.04936729,131.08,131.05,0.05414551]
[1740709437331,9.04172782,131.09,130.98,4.1014]
[1740709437532,0.05131919,131.08,131.05,0.05231]
[1740709437735,7.662,131.09,130.98,4.1014]
[1740709437932,7.6362,131.05,130.98,4.1014]
[1740709438138,0.05131919,131.08,130.98,4.1014]
[1740709438338,7.662,131.09,131.02,0.05528722]